Cogmind - Beta 17.1 @@@ ROGUE MODE // 2026.09.12 @ 19:49:11 Player: MOPO3 Result: Destroyed by S-10 Pest with Light Assault Rifle Performance ------------- Evolutions (0) 0 Regions Visited (2) 400 Robots Destroyed (11) 55 Value Destroyed (294) 294 Prototype IDs (0) 0 Alien Tech Used (0) 0 Bonus (0) 0 TOTAL SCORE: 749 Bonus ------- None Cogmind --------- Core Integrity 0/250 Matter 295/300 Energy 225/250 System Corruption 0% Temperature Cool (39) Movement Rolling (190) Ox6 Location -10/Subcaves Parts ------- > --- POWER (1) -------- Ion Engine > --- PROPULSION (2) --- Compact Wheel > --- UTILITY (2) ------ Huge Storage Unit Seismic Detector > --- WEAPON (2) ------- Subdweller Beam Cannon Subdweller Beam Cannon > --- INVENTORY (25) --- Ion Engine Subdweller Monowheel Subdweller Monowheel Heat Sink Heat Sink Small Storage Unit High-capacity Matter Pod (44) Improved Terrain Scanner Cobbler Unit Beam Cannon Subdweller Beam Cannon Subdweller Beam Cannon Assault Rifle Assault Rifle Light Assault Rifle Light Assault Rifle Battle Rifle Battle Rifle Barrage Gun Grenade Launcher Grenade Launcher Mining Claw Mining Claw Mining Claw Peak State ------------ > --- POWER ------------ Ion Engine > --- PROPULSION ------- Wheel Compact Wheel > --- UTILITY ---------- Huge Storage Unit Seismic Detector > --- WEAPON ----------- Subdweller Beam Cannon Subdweller Beam Cannon > --- INVENTORY -------- Ion Engine Subdweller Monowheel Subdweller Monowheel Heat Sink Heat Sink Small Storage Unit Subdweller Optics Improved Terrain Scanner Cobbler Unit Small Laser Beam Cannon Subdweller Beam Cannon Assault Rifle Assault Rifle Light Assault Rifle Light Assault Rifle Battle Rifle Battle Rifle Grenade Launcher Grenade Launcher Mining Claw Mining Claw Mining Claw Mining Claw [Rating: 12] Favorites ----------- Power Ion Engine Engine Ion Engine Propulsion Wheel Wheel Wheel Utility Huge Storage Unit Device Seismic Detector Storage Huge Storage Unit Processor Signal Interpreter Weapon Mining Claw Energy Cannon Subdweller Beam Cannon Ballistic Gun Light Assault Rifle Launcher Grenade Launcher Slashing Weapon Mining Claw Build | -11 -10 -10 ------- Run | Yrd Mat Sub Slots Evolved . | . . . Power . | . . . Propulsion . | . . . Utility . | . . . Weapon . | . . . Parts Attached 19 | 7 3 9 Power 2 | 1 . 1 Engine 2 | 1 . 1 Core . | . . . Reactor . | . . . Propulsion 2 | 2 . . Treads . | . . . Leg . | . . . Wheel 2 | 2 . . Hover . | . . . Flight . | . . . Utility 4 | 2 2 . Device 1 | 1 . . Storage 2 | 1 1 . Processor 1 | . 1 . Hackware . | . . . Protection . | . . . Artifact . | . . . Weapon 11 | 2 1 8 Energy Gun . | . . . Energy Cannon 3 | . . 3 Ballistic Gun 3 | 2 1 . Ballistic Cannon . | . . . Launcher 2 | . . 2 Special Weapon . | . . . Impact Weapon . | . . . Slashing Weapon 3 | . . 3 Piercing Weapon . | . . . Special Melee Weapon . | . . . Unidentified Prototypes . | . . . Parts Lost 2 | . . 2 Power 1 | . . 1 Propulsion 1 | . . 1 Utility . | . . . Weapon . | . . . Highest Loss Streak 1 | . . 1 To Critical Strikes . | . . . Average Backups 18 | 1 10 21 Power . | . 1 . Propulsion 1 | . . 1 Utility 4 | . 2 5 Weapon 11 | . 6 13 Tool/Special . | . . . Unused Backups 20 | . . 20 Power 1 | . . 1 Propulsion 3 | . . 3 Utility 7 | . . 7 Weapon 9 | . . 9 Tool/Special . | . . . Average Slot Usage (%) 99 | . 100 99 Engine 13 | . 14 13 Wheel 28 | . 28 28 Device 13 | . 10 14 Storage 14 | . 14 14 Energy Cannon 5 | . . 6 Ballistic Gun 10 | . 28 5 Launcher 3 | . . 4 Slashing Weapon 9 | . . 11 Peak Build Rating 12 | 7 9 12 Average Rating 9 | 5 7 9 On Entrance 5 | . 7 9 Avg Prop Armor Cover (%) . | . . . Naked Turns . | . . . Heaviest Build 102 | 11 87 102 Greatest Support 26 | 26 26 26 Greatest Overweight (x) 3 | . 3 3 Average Overweight (x) 2 | . 2 3 Largest Inventory Capacity 25 | 8 25 25 Average Capacity 23 | 7 22 25 Most Carried 25 | 3 18 25 Average Carried 19 | 1 10 22 Final Capacity 25 | 8 25 25 Final Carried 25 | 3 18 25 Class Distribution -------------------- 100% | Mutant Dominant Class ---------------- Mutant | -10/Materials Mutant | -10/Subcaves Resources | -11 -10 -10 ----------- Run | Yrd Mat Sub Matter Collected 543 | 243 85 215 Remotely . | . . . Salvage Created 455 | 55 117 283 Parts 27 | 7 7 13 Haulers Intercepted 1 | . 1 . Recyclers Shooed . | . . . Parts Field Recycled . | . . . Retrieved Matter . | . . . Parts Self-Destructed 6 | . . 6 Prevented . | . . . Parts Restored . | . . . Kills | -11 -10 -10 ------- Run | Yrd Mat Sub Combat Hostiles Destroyed 8 | . 2 6 Melee 2 | . . 2 Guns 2 | . 2 . Cannons 1 | . . 1 AOE 2 | . . 2 Classes Destroyed 6 | 1 2 3 Tunneler 2 | 2 . . Hauler 1 | . 1 . Swarmer 1 | . . 1 Grunt 2 | . 2 . Cobbler 1 | . . 1 Subdweller 5 | . . 5 Best Kill Streak 2 | 1 2 2 Combat Bots Only 2 | . 2 2 Max Kills in Single Turn 1 | 1 1 1 Gunslinging . | . . . Exploded 1 | . . 1 Melee 1 | . . 1 Uniques/NPCs Destroyed . | . . . Combat | -11 -10 -10 -------- Run | Yrd Mat Sub Hostile Shots Fired 54 | . 10 44 Missed 19 | . 2 17 Hits 35 | . 8 27 Projectile 35 | . 8 27 AOE 1 | . . 1 Critical Strikes 2 | . . 2 Damage Taken 644 | . 86 558 Core 253 | . 11 242 Absorbed by Shields . | . . . Core Remaining (%) 100 | 100 . . Volleys Fired 31 | 2 17 12 Largest 2 | 2 2 2 Hottest 160 | 40 40 160 Shots Fired 62 | 4 34 24 Gun 46 | 4 34 8 Cannon 12 | . . 12 Launcher 4 | . . 4 Special . | . . . Kinetic 46 | 4 34 8 Thermal 12 | . . 12 Explosive 4 | . . 4 Electromagnetic . | . . . Robot Hit Streak 10 | 3 10 8 Robot Miss Streak 2 | 1 1 2 Penetration Max . | . . . Secondary Targets . | . . . Shots Hit Robots 53 | 3 26 24 Core Hits 19 | 3 7 9 Critical Kills 1 | . . 1 Critical Parts Destroyed . | . . . Critical Strikes 1 | . . 1 Meltdown 1 | . . 1 Melee Attacks 26 | . . 26 Impact . | . . . Slashing 26 | . . 26 Piercing . | . . . Sneak Attacks 2 | . . 2 Combat Hostiles . | . . . Follow-up Attacks . | . . . Damage Inflicted 804 | 26 232 546 Guns 258 | 26 232 . Cannons 53 | . . 53 Explosions 207 | . . 207 Melee 286 | . . 286 Ramming . | . . . Kinetic 258 | 26 232 . Thermal 53 | . . 53 Explosive 207 | . . 207 Electromagnetic . | . . . Impact . | . . . Slashing 286 | . . 286 Piercing . | . . . Highest Corruption . | . . . Average Corruption . | . . . Corruption Purged . | . . . Corruption Blocked . | . . . Overload Shots . | . . . Overflow Damage 12 | . . 12 Projectiles . | . . . Explosions . | . . . Melee 12 | . . 12 Knockbacks . | . . . Impact . | . . . Kinetic . | . . . Secondary . | . . . Self-Inflicted Damage . | . . . Shots . | . . . Rammed . | . . . Targets Rammed . | . . . Kicked . | . . . Crushed . | . . . Highest Temperature 230 | . 12 230 Average Temperature 39 | . 7 50 Received Heat Transfer 455 | . 48 407 Siege Activations . | . . . Martial Activations . | . . . Shielding Activations . | . . . Robots Disrupted . | . . . Combat Hostiles . | . . . Robots Corrupted . | . . . Combat Hostiles . | . . . Parts Fried . | . . . Impact Corruptions . | . . . Robots Melted 1 | . . 1 Combat Hostiles 1 | . . 1 Parts Melted . | . . . Heat Transferred 74 | . . 74 Parts Sabotaged . | . . . Parts Stolen . | . . . Parts Stripped . | . . . Power Chain Reactions . | . . . Alert | -11 -10 -10 ------- Run | Yrd Mat Sub Maximum Alert Level . | . . . Low Security (%) 100 | 100 100 . Level 1 . | . . . Level 2 . | . . . Level 3 . | . . . Level 4 . | . . . Level 5 . | . . . High Security . | . . . Max Security . | . . . Peak Influence 55 | 5 55 . Initial 3 | . 3 . Average 8 | 1 9 . Influence Increases 154 | 10 94 50 Destroy 0b10 Robot/C 60 | . 40 20 Destroy 0b10 Robot/NC 15 | 10 5 . Destroy Leader 12 | . 12 . Successful Hack 22 | . 22 . Lose Combat Pursuer 45 | . 15 30 Influence Decreases 114 | 5 94 15 Entered New Map 5 | . 2 3 Time Decay 99 | 5 92 2 Lost Part 10 | . . 10 Squads Dispatched 1 | . 1 . Investigation 1 | . 1 . Extermination . | . . . Reinforcement . | . . . Assault . | . . . Garrison . | . . . Intercept . | . . . Searches Triggered . | . . . Construction Impeded . | . . . Haulers Reinforced . | . . . Active Scanning Responses . | . . . Cargo Convoy Interrupts . | . . . Stealth | -11 -10 -10 --------- Run | Yrd Mat Sub Distress Signals . | . . . Communications Jammed . | . . . Distress Signals . | . . . Times Spotted 17 | . 5 12 Peak Tracking Total 5 | . 3 5 Tactical Retreats 2 | . 1 1 Traps | -11 -10 -10 ------- Run | Yrd Mat Sub Traps Triggered . | . . . Indirectly . | . . . Trap Hack Attempts . | . . . Triggered . | . . . Disarmed . | . . . Reprogrammed . | . . . Reused . | . . . Traps Extracted . | . . . Installed . | . . . Triggered . | . . . Machines | -11 -10 -10 ---------- Run | Yrd Mat Sub Machines Disabled . | . . . Max in Single Turn . | . . . Machines Repaired . | . . . Machines Dismantled . | . . . Machines Sabotaged . | . . . Overloaded Fab Kills . | . . . Hacking | -11 -10 -10 --------- Run | Yrd Mat Sub Machines Accessed 5 | . 5 . Terminals 5 | . 5 . Fabricators . | . . . Repair Stations . | . . . Recycling Units . | . . . Scanalyzers . | . . . Garrison Access . | . . . Total Hacks 10 | . 10 . Successful 7 | . 7 . Failed 3 | . 3 . Catastrophic 1 | . 1 . Database Lockouts . | . . . Manual 11 | . 11 . Terminals 10 | . 10 . Fabricators . | . . . Repair Stations . | . . . Recycling Units . | . . . Scanalyzers . | . . . Garrison Access . | . . . Terminal Hacks 2 | . 2 . Part Schematic 1 | . 1 . Branch Access Points 1 | . 1 . Fabricator Hacks . | . . . Repair Station Hacks . | . . . Recycling Unit Hacks . | . . . Scanalyzer . | . . . Garrison Access Hacks . | . . . Unauthorized Hacks 4 | . 4 . Terminals 4 | . 4 . Botnet 4 | . 4 . Fabricators . | . . . Repair Stations . | . . . Recycling Units . | . . . Scanalyzers . | . . . Garrison Access . | . . . Data Cores Recovered . | . . . Used . | . . . Hacking Detections 5 | . 5 . Full Trace Events 1 | . 1 . Feedback Events . | . . . Feedback Blocked . | . . . Robot Schematics Acquired . | . . . Robots Built . | . . . Authchips . | . . . Time . | . . . Total Robot Build Rating . | . . . Part Schematics Acquired 1 | . 1 . Parts Built . | . . . Authchips . | . . . Time . | . . . Total Part Build Rating . | . . . Part Studies Acquired . | . . . Parts Repaired . | . . . Time . | . . . Parts Recycled . | . . . Recycled Matter . | . . . Retrieved Matter . | . . . Retrieved Components . | . . . Parts Scanalyzed . | . . . Part Schematics Acquired . | . . . Parts Damaged . | . . . Bothacking | -11 -10 -10 ------------ Run | Yrd Mat Sub Used RIF Installer . | . . . Robots Hacked . | . . . Non-combat . | . . . Combat . | . . . Robot Hacks Applied . | . . . Relay Couplers Released . | . . . Fabnet Peak Effective % . | . . . Robots Rewired . | . . . Allies Hacked . | . . . Hacks Repelled . | . . . Allies | -11 -10 -10 -------- Run | Yrd Mat Sub Total Allies . | . . . Largest Group . | . . . Highest-Rated Group . | . . . Highest-Rated Ally . | . . . Total Orders . | . . . Ally Attacks . | . . . Total Damage . | . . . Kills . | . . . Allies Corrupted . | . . . Allies Melted . | . . . Intel | -11 -10 -10 ------- Run | Yrd Mat Sub Active Infowar (turns) 1736 | 5 287 1444 Seismic 1736 | 5 287 1444 Robot Analysis Total . | . . . Derelict Logs Recovered 1 | . . 1 Drone Launches . | . . . Drone Recoveries . | . . . Exploration | -11 -10 -10 ------------- Run | Yrd Mat Sub Turns Passed 1878 | 70 364 1444 Spaces Moved 1246 | 61 226 959 Core 9 | 9 . . Treads . | . . . Legs . | . . . Wheels 1237 | 52 226 959 Hover . | . . . Flight . | . . . Fastest Speed 50 | 50 90 135 Average Speed 131 | 83 128 135 Slowest Speed 135 | 90 135 135 Overloaded Moves . | . . . Propulsion Burnouts . | . . . Robots Hopped . | . . . Potential Cave-ins . | . . . Cave-ins Triggered . | . . . Exploration Rate (%) 24 | 3 33 36 Regions Visited 2 Branch Regions 1 Pre-discovered Areas 1 | . . 1 Known Exits Taken 1 | . 1 . Unknown Exits Taken 1 | 1 . . Scrap Searched 2 | . . 2 Spaces Dug . | . . . Terrain Destroyed 10 | . . 10 Melee . | . . . Projectile . | . . . AOE 10 | . . 10 Terrain Rammed . | . . . Walls Destroyed . | . . . Machines Disabled . | . . . Actions | -11 -10 -10 --------- Run | Yrd Mat Sub Total 1375 | 73 268 1034 Wait 17 | 1 10 6 Move 1244 | 60 225 959 Hop . | . . . Pick Up 30 | 3 13 14 Fast Attach 8 | 7 . 1 Attach 1 | . . 1 Detach . | . . . Swap 12 | . 3 9 Drop 7 | . . 7 Fire 31 | 2 17 12 Melee 25 | . . 25 Ram . | . . . Kick . | . . . Crush . | . . . Escape Stasis . | . . . Rewire . | . . . Trap . | . . . Miscellaneous . | . . . Route ------- -11/Scrapyard -10/Materials (discovered 2 exits: Min / *Sub) -10/Subcaves (discovered 1 exit: [*Rec]) History --------- Turn | Location | Event 4 | -11/Scrapyard | Discovered new exit (range 16) 71 | -11/Scrapyard | Entered Materials 184 | -10/Materials | Identified exit to Mines 317 | -10/Materials | Build established: Mutant 346 | -10/Materials | Discovered new exit (range 10) 360 | -10/Materials | Identified exit to Subcaves 435 | -10/Materials | Entered Subcaves 1317 | -10/Subcaves | Disturbed a concealed Subdweller 1322 | -10/Subcaves | Core integrity fell below 50% 1364 | -10/Subcaves | Learned location of Zion (-6) 1364 | -10/Subcaves | Met a Zionite searching for "candidates" 1494 | -10/Subcaves | Core integrity fell below 20% 1739 | -10/Subcaves | Shifting Twisted Machinery released Barrage Gun 1740 | -10/Subcaves | Shifting Twisted Machinery released Sub. Power Source 1771 | -10/Subcaves | Shifting Twisted Machinery released Piercing Trap 1795 | -10/Subcaves | Shifting Twisted Machinery released Sub. Monowheel 1872 | -10/Subcaves | Discovered new exit (range 13) 1879 | -10/Subcaves | Destroyed by S-10 Pest with Light Assault Rifle Last Messages --------------- 01746_ Subatomizers dissect the Sub. Beam Cannon. 01746_ Acquired 20 matter. 01749_ Dropped Mining Claw. 01752_ Acquired Sub. Beam Cannon. 01753_ Dropped Sub. Optics. 01755_ Acquired Hcp. Matter Pod. 01756_ Acquired 12 matter. 01763_ Dropped Sml. Laser. 01765_ Acquired Barrage Gun. 01770_ 0Q-AOY(u) tweaks Twisted Machinery. Piercing Trap falls loose from the Twisted Machinery. 01771_ Acquired 29 matter. 01775_ 0Q-AOY(u) tweaks Twisted Machinery. Sub. Monowheel falls loose from the Twisted Machinery. 01803_ Subatomizers dissect the Sub. Optics. 01865_ Acquired 6 matter. 01870_ Acquired 7 matter. 01872_ EXIT=FOUND 01876_ S-10 Pest destroyed. 01878_ Wheel destroyed. Map ----- +----------------------------------------------------+ | ?????????????????????????????????????????????????? | | ?????????????????????????????????????????????????? | | ?????????????????????????????????????????????????? | | ?????????????????????????????????????????????????? | | ?????????????????????????????????????????????????? | | ?????????????????????????????????????????????????? | | ?????????????????????????????????????????????????# | | ?????????????????????????????????????????????????# | | ?????????????????????????????????????????????????# | | ????????????????????????????????????????????????## | | ????????????????????????????????????????????????# | | ???????????????????????????????????????????????## | | ??????????????????????????????????????????????## | | ??????????????????????????????????????????????# | | ??????????????????????????????????????????????## | | ???????????????????????????????????????????????## | | ????????????????????????????????????????????????## | | ????????????????######????????????????????????#### | | ????????????????# ####??????????????????### # | | ?????????????????? ###???????"""#?????# "" | | ??????????????????? ##???? "#?????# | | ????????????????????? #### "####### # # | | ??????????????????????# ""## #= " ## | | ??????????????????????# s % <## " ## | | ??????????????????????# s= ""#?# # | | ??????????????????????# @###### "#?### " "" | | ??????????????????????# ####????????????## " | | ??????????????????????# ##???????????## """"# | | ?????????????????????## #????????#### """"## | | ????????????????????## #????????#""" """##? | | ??????????? ## ##?????####""" ""##?? | | ???????????% % ####### """ ###??? | | ?????????? ## ###????? | | ??????????? ####### #### ####??????? | | ??????????? ??????#######??###?????????? | | ??????????? % ???????????????????????????? | | ???????????# ????????????????????????????? | | ???????????? %#????????????????????????????? | | ???????????? #?????????????????????????????? | | ????????????? ??????????????????????????????? | | ?????????????# % ???????????????????????????????? | | ??????????????? ????????????????????????????????? | | ?????????????????????????????????????????????????? | | ?????????????????????????????????????????????????? | | ?????????????????????????????????????????????????? | | ?????????????????????????????????????????????????? | | ?????????????????????????????????????????????????? | | ?????????????????????????????????????????????????? | | ?????????????????????????????????????????????????? | | ?????????????????????????????????????????????????? | +----------------------------------------------------+ Best States ------------- Heat Dissipation 25 Energy Generation 10 Energy Capacity 250 Matter Stores 300 Matter Capacity 300 Sight Range 16 Terrain Scan Density 10 Evasion (%) 50 Item Schematics ----------------- Sml. Storage Unit | -10/Materials | Hacked Robot Schematics ------------------ None Fabricated ------------ Nothing Repaired ---------- Nothing Studied --------- None Alien Tech Used ----------------- None Achievements -------------- Art Critic Challenges ------------ None Game ------ Seed SmartWardroneSheargun Manual? 0 Play Time 00:20:04 Cumulative 18.6 hours Start 2026.09.12 @ 14:50:35 End 2026.09.12 @ 19:49:11 Sessions 1 Manual Loads 0 Difficulty Rogue Special Mode None Game No. 19 Rogue 19 Adventurer 0 Explorer 0 Win Type - Total 1 Types 1/0/0/0/0/0/0/0/0/0 Lore% 11 Gallery% 23 Achievement% 24 Wizard Run 0 Options --------- Layout 0 ASCII 0 Keyboard 0 Movement Numpad Keybinds 0 Fullscreen 1 Font 18/Terminus Map View 76x50 Zoom Use 0% Tactical HUD 1 Map Filters NONE Filters NONE Steam 1 RUN: 418ddd3a-72ea-4090-8a3b-9f858878c0a6